Cogmind - Beta 12 --- EXPLORER MODE // 2023.03.05 @ 15:24:52 Player: Mr. Q Result: Destroyed by G-73 Enforcer with Phase Gun Performance ------------- Evolutions (7) 3500 Regions Visited (15) 3000 Robots Destroyed (75) 375 Value Destroyed (2850) 2850 Prototype IDs (3) 60 Alien Tech Used (0) 0 Bonus (440) 440 TOTAL SCORE: 10225 Bonus ------- High Alert Combat Kills 55 Follower Combat Kills 191 Entered DSFs 500 Friendly Fire -306 Cogmind --------- Core Integrity 0/1300 Matter 99/300 Energy 100/100 System Corruption 15% Temperature Cool (9) Movement Core (700) Ox13 Location -3/Research Parts ------- > --- POWER (2) -------- (None) > --- PROPULSION (6) --- (None) > --- UTILITY (11) ----- High-capacity Storage Unit Improved Armor Integrity Analyzer Graphene Brace > --- WEAPON (3) ------- (None) > --- INVENTORY (20) --- VSS Leg Improved VSS Leg Advanced Cryofiber Web High-capacity Storage Unit Compact Battery (200) Advanced Transmission Jammer Advanced ECM Suite Advanced Field Recycling Unit (0) Advanced Remote Datajack Peak State ------------ > --- POWER ------------ Micro Antimatter Reactor Light Quantum Reactor > --- PROPULSION ------- Armored Huge Wheel Armored Huge Wheel Armored Huge Wheel > --- UTILITY ---------- High-capacity Storage Unit Compact Battery Triangulator Improved Sensor Array Improved Armor Integrity Analyzer Advanced Transmission Jammer ECM Suite Layered Light Armor Plating Centrium Light Armor Plating Graphene Brace Improved Remote Force Field > --- WEAPON ----------- Beamcaster KE Penetrator Railgun > --- INVENTORY -------- Micro Fission Core Micro Antimatter Reactor VSS Leg Improved VSS Leg Biometal Leg Biometal Leg Biometal Leg Armored Huge Wheel Advanced Cryofiber Web High-capacity Storage Unit Compact Battery Advanced Transmission Jammer Advanced ECM Suite Improved Remote Force Field Advanced Field Recycling Unit HERF Cannon Gauss Cannon Micro-nuke Launcher Advanced Remote Datajack [Rating: 125] Favorites ----------- Power Micro Fission Core Engine Ion Engine Power Core Micro Fission Core Reactor Light Quantum Reactor Propulsion Armored Huge Wheel Leg Titanium Leg Wheel Armored Huge Wheel Utility Layered Light Armor Plating Device ECM Suite Storage High-capacity Storage Unit Processor Improved Armor Integrity Analyzer Protection Layered Light Armor Plating Weapon Gauss Cannon Energy Gun Beamcaster Energy Cannon Ion Cannon Ballistic Gun KE Penetrator Ballistic Cannon Gauss Cannon Launcher Proton Missile Launcher Special Weapon Mining Laser Slashing Weapon Great Axe Build | -11 -10 -10 -9 -9 -8 -7 -7 -6 -6 -6 -5 -4 -4 -4 -3 ------- Run | Jun Mat Min Mat Sto Mat Fac DSF Fac Low Low Fac Fac Upp Upp Res Slots Evolved 15 | . 1 . 2 . 2 2 . 2 . . 2 2 . . 2 Power 1 | . . . 1 . . . . . . . . . . . . Propulsion 4 | . . . . . . . . 2 . . 2 . . . . Utility 9 | . 1 . 1 . 1 2 . . . . . 2 . . 2 Weapon 1 | . . . . . 1 . . . . . . . . . . Parts Attached 151 | 6 4 2 8 14 17 1 12 2 7 7 14 17 10 6 24 Power 25 | 1 . . 2 . 5 . 1 . . 3 2 2 5 1 3 Engine 9 | 1 . . 2 . 2 . 1 . . . 1 . 2 . . Core 13 | . . . . . 3 . . . . 3 1 2 3 . 1 Reactor 3 | . . . . . . . . . . . . . . 1 2 Propulsion 24 | 2 . . 2 . 3 . 3 1 . . 3 4 . . 6 Treads . | . . . . . . . . . . . . . . . . Leg 15 | 2 . . 2 . 3 . 2 . . . . 2 . . 4 Wheel 9 | . . . . . . . 1 1 . . 3 2 . . 2 Hover . | . . . . . . . . . . . . . . . . Flight . | . . . . . . . . . . . . . . . . Utility 68 | 1 4 . 4 9 4 1 6 1 5 3 4 9 2 4 11 Device 35 | . 1 . 1 7 2 1 2 . 1 2 2 4 1 3 8 Storage 10 | 1 . . 2 . . . 3 . . . 1 2 1 . . Processor 2 | . . . . . . . . . . . . 1 . . 1 Hackware . | . . . . . . . . . . . . . . . . Protection 21 | . 3 . 1 2 2 . 1 1 4 1 1 2 . 1 2 Artifact . | . . . . . . . . . . . . . . . . Weapon 34 | 2 . 2 . 5 5 . 2 . 2 1 5 2 3 1 4 Energy Gun 8 | 1 . . . 3 1 . . . 2 . . . . 1 . Energy Cannon 4 | . . 1 . . 1 . . . . . 1 . . . 1 Ballistic Gun 6 | 1 . . . . . . 2 . . . . . 2 . 1 Ballistic Cannon 8 | . . . . . 2 . . . . . 4 . 1 . 1 Launcher 5 | . . . . 1 1 . . . . . . 2 . . 1 Special Weapon 1 | . . 1 . . . . . . . . . . . . . Impact Weapon . | . . . . . . . . . . . . . . . . Slashing Weapon 2 | . . . . 1 . . . . . 1 . . . . . Piercing Weapon . | . . . . . . . . . . . . . . . . Special Melee Weapon . | . . . . . . . . . . . . . . . . Unidentified Prototypes 3 | . . . . 1 1 . . . . . . . . . 1 Corrupted Parts 1 | . . . . . . . . . . . . . . 1 . System Corruption 2 | . . . . . . . . . . . . . . 2 . Parts Lost 36 | . . . . 1 2 . 2 . . 4 . 3 1 . 23 Power 8 | . . . . . 1 . . . . 2 . 1 . . 4 Propulsion 7 | . . . . . . . . . . . . 1 . . 6 Utility 12 | . . . . 1 . . 2 . . 2 . . . . 7 Weapon 9 | . . . . . 1 . . . . . . 1 1 . 6 Highest Loss Streak 22 | . . . . 1 1 . 1 . . 1 . 3 1 . 22 To Critical Strikes 1 | . . . . . . . . . . . . 1 . . . Average Slot Usage (%) 88 | . 99 100 97 99 85 85 95 85 86 79 82 83 84 85 80 Engine 7 | . 12 12 17 20 8 7 7 6 6 2 3 . 4 1 . Core 4 | . . . . . 4 7 7 6 6 6 7 9 5 5 1 Leg 8 | . 25 25 20 20 14 14 12 . . . . . . . . Wheel 8 | . . . . . . . . 12 12 12 15 14 15 15 11 Device 20 | . 5 12 17 18 14 21 24 25 23 22 22 22 25 25 25 Storage 8 | . 12 12 10 10 8 7 7 6 6 6 5 9 10 10 8 Protection 11 | . 18 12 12 10 15 14 15 10 13 12 11 11 10 10 7 Energy Gun 3 | . 12 2 . 2 6 . . . 4 6 . . . 3 3 Energy Cannon 3 | . . 9 10 8 2 7 7 6 6 3 4 4 . . . Ballistic Gun 5 | . 12 8 . . . . 11 12 7 3 . . 9 6 5 Ballistic Cannon 2 | . . . . . 7 7 . . . . 8 9 . 5 2 Naked Turns . | . . . . . . . . . . . . . . . . Heaviest Build 127 | 19 23 24 31 42 46 48 59 63 63 63 103 104 84 106 127 Greatest Support 84 | 20 20 20 34 34 34 34 34 28 56 56 84 84 84 84 84 Greatest Overweight (x) 19 | 1 1 1 3 1 2 1 2 2 1 2 1 1 . 1 19 Average Overweight (x) . | . . 1 . . 1 1 1 2 . . . . . . 1 Largest Inventory Capacity 20 | 10 10 10 15 10 10 10 15 15 15 15 20 20 20 20 20 Average Capacity 15 | 7 10 10 10 10 10 10 10 15 15 15 17 20 20 20 20 Most Carried 20 | 6 8 10 10 10 10 8 15 15 15 15 20 20 20 20 20 Average Carried 13 | 3 5 8 8 9 7 7 10 14 15 13 15 19 17 19 18 Final Capacity 20 | 10 10 10 10 10 10 10 15 15 15 15 20 20 20 20 20 Final Carried 20 | 6 8 10 8 8 8 8 15 15 15 13 19 15 19 20 9 Class Distribution -------------------- 39% | Hacker-Mutant 30% | Infiltrator-Tank 25% | Hacker-Tank Dominant Class ---------------- Hacker-Mutant | -10/Materials Hacker-Mutant | -10/Mines Hacker-Mutant | -9/Materials Hacker-Mutant | -9/Storage Hacker-Tank | -8/Materials Hacker-Tank | -7/Factory Hacker-Tank | -7/DSF Hacker-Tank | -6/Factory Hacker-Tank | -6/Lower Caves Hacker-Tank | -6/Lower Caves Hacker-Mutant | -5/Factory Infiltrator-Tank | -4/Factory Infiltrator-Tank | -4/Upper Caves Infiltrator-Tank | -4/Upper Caves Infiltrator-Tank | -3/Research Resources | -11 -10 -10 -9 -9 -8 -7 -7 -6 -6 -6 -5 -4 -4 -4 -3 ----------- Run | Jun Mat Min Mat Sto Mat Fac DSF Fac Low Low Fac Fac Upp Upp Res Matter Collected 2836 | 260 42 60 . 290 309 . 145 56 72 245 365 295 401 188 108 Remotely . | . . . . . . . . . . . . . . . . Salvage Created 2731 | . 107 158 . 332 491 . 165 . . 157 291 250 403 22 355 Parts 134 | . 7 9 . 18 35 . 9 . . 9 9 16 12 . 10 Haulers Intercepted . | . . . . . . . . . . . . . . . . Recyclers Shooed . | . . . . . . . . . . . . . . . . Parts Field Recycled 10 | . . . . . . . . . . . . . . 3 7 Retrieved Matter 180 | . . . . . . . . . . . . . . 72 108 Parts Self-Destructed . | . . . . . . . . . . . . . . . . Prevented . | . . . . . . . . . . . . . . . . Kills | -11 -10 -10 -9 -9 -8 -7 -7 -6 -6 -6 -5 -4 -4 -4 -3 ------- Run | Jun Mat Min Mat Sto Mat Fac DSF Fac Low Low Fac Fac Upp Upp Res Combat Hostiles Destroyed 66 | . 4 4 . 10 17 . 4 . . 2 6 7 6 . 6 Melee 5 | . . . . 5 . . . . . . . . . . . Guns 22 | . 3 2 . 2 3 . 3 . . 2 . . 3 . 4 Cannons 29 | . . 2 . 2 13 . 1 . . . 5 5 1 . . AOE 9 | . 1 . . 1 1 . . . . . . 2 2 . 2 Classes Destroyed 14 | . 2 1 . 3 4 . 1 . . 1 1 . . . 1 Worker 1 | . . . . . . . . . . . . . . . 1 Builder 4 | . . . . . 3 . . . . . . 1 . . . Recycler 1 | . . 1 . . . . . . . . . . . . . Mechanic 1 | . . . . . 1 . . . . . . . . . . Drone 2 | . . . . 2 . . . . . . . . . . . Watcher 2 | . . . . . 1 . . . . . . 1 . . . Swarmer 27 | . 2 4 . 3 7 . 2 . . 1 . 7 1 . . Grunt 17 | . 2 . . 2 7 . . . . . 2 . 3 . 1 Duelist 2 | . . . . 1 1 . . . . . . . . . . Sentry 7 | . . . . 4 1 . . . . 1 . . 1 . . Specialist 2 | . . . . . . . 2 . . . . . . . . Hunter 4 | . . . . . 1 . . . . . 2 . 1 . . Programmer 7 | . . . . . . . . . . . 2 . . . 5 Samaritan 3 | . . . . . . . . . . 2 . . . 1 . Best Kill Streak 6 | . 2 3 . 3 6 . 2 . . 1 2 6 3 . 2 Combat Bots Only 5 | . 2 2 . 3 5 . 2 . . 1 2 4 3 . 2 Max Kills in Single Turn 3 | . 1 1 . 2 3 . 2 . . 1 1 1 1 1 2 Gunslinging . | . . . . . . . . . . . . . . . . Exploded 2 | . 1 . . 1 1 . . . . . . 1 1 . 2 Melee 1 | . . . . 1 . . . . . . . . . . . Uniques/NPCs Destroyed . | . . . . . . . . . . . . . . . . Combat | -11 -10 -10 -9 -9 -8 -7 -7 -6 -6 -6 -5 -4 -4 -4 -3 -------- Run | Jun Mat Min Mat Sto Mat Fac DSF Fac Low Low Fac Fac Upp Upp Res Damage Taken 9614 | . 42 81 . 567 925 . 649 39 29 478 454 932 553 . 4865 Core 1721 | . . 17 . 84 118 . 56 . . . . 68 64 . 1314 Absorbed by Shields 588 | . . . . . . . 81 . . . . 25 . . 482 Redirected to Shielding 51 | . 2 . . 7 39 . . . . 3 . . . . . Regen/Repaired (Parts) 20 | . 20 . . . . . . . . . . . . . . Core Remaining (%) 91 | 100 . 93 . 79 78 . 92 . . 100 100 . . 88 . Volleys Fired 154 | . 5 18 . 21 27 . 10 . . 11 18 8 13 4 19 Largest 3 | . 2 2 . 2 2 . 3 . . 3 3 3 3 3 3 Hottest 186 | . 60 160 . 160 123 . 116 . . 157 186 186 116 116 156 Shots Fired 335 | . 10 31 1 31 44 . 30 . . 21 43 21 35 12 56 Gun 159 | . 10 15 . 7 16 . 20 . . 16 . . 24 8 43 Cannon 152 | . . 13 1 15 27 . 10 . . 5 43 19 3 4 12 Launcher 14 | . . . . 2 1 . . . . . . 2 8 . 1 Special 10 | . . 3 . 7 . . . . . . . . . . . Kinetic 178 | . 5 10 . . 26 . 20 . . 5 25 12 27 12 36 Thermal 108 | . . 16 1 29 17 . 10 . . 16 . . . . 19 Explosive 4 | . . . . 2 1 . . . . . . . . . 1 Electromagnetic 45 | . 5 5 . . . . . . . . 18 9 8 . . Robot Hit Streak 33 | . 5 4 . 18 18 . 10 . . 18 26 5 14 5 33 Robot Miss Streak 2 | . 2 2 . . 2 . 1 . . . 2 2 2 1 1 Penetration Max 1 | . . . . . 1 . . . . . . . . . 1 Secondary Targets 1 | . . 1 . . . . . . . . . . . . . Max Gunslinging Chain 1 | . . 1 . . . . . . . . . . . . . Shots Hit Robots 241 | . 5 12 . 28 33 . 23 . . 17 34 9 28 9 43 Core Hits 119 | . 4 5 . 14 23 . 6 . . 9 10 13 19 2 14 Critical Kills . | . . . . . . . . . . . . . . . . Critical Parts Destroyed 4 | . . . . . . . 1 . . . . . 2 . 1 Critical Strikes 21 | . 1 . . 1 5 . 1 . . 1 4 . 2 . 6 Burn 4 | . . . . . . . . . . 1 . . . . 3 Destroy 4 | . . . . . . . 1 . . . . . 2 . 1 Blast 11 | . . . . . 5 . . . . . 4 . . . 2 Corrupt 1 | . 1 . . . . . . . . . . . . . . Sever 1 | . . . . 1 . . . . . . . . . . . Melee Attacks 14 | . . . . 11 . . . . . 2 1 . . . . Impact . | . . . . . . . . . . . . . . . . Slashing 14 | . . . . 11 . . . . . 2 1 . . . . Piercing . | . . . . . . . . . . . . . . . . Sneak Attacks . | . . . . . . . . . . . . . . . . Combat Hostiles . | . . . . . . . . . . . . . . . . Follow-up Attacks . | . . . . . . . . . . . . . . . . Damage Inflicted 8179 | . 100 161 17 962 1745 . 505 . . 284 996 704 679 204 1822 Guns 2575 | . 52 109 . 101 208 . 297 . . 238 . . 441 144 985 Cannons 3249 | . . 52 17 139 1113 . 208 . . 46 996 250 60 60 308 Explosions 1908 | . 48 . . 338 420 . . . . . . 395 178 . 529 Melee 351 | . . . . 351 . . . . . . . . . . . Ramming 72 | . . . . 9 4 . . . . . . 59 . . . Kinetic 3823 | . 13 77 . . 1091 . 297 . . 43 588 129 501 204 880 Thermal 1866 | . 48 52 17 264 568 . 208 . . 241 . 55 . . 413 Explosive 949 | . . . . 338 82 . . . . . . . . . 529 Electromagnetic 1118 | . 39 32 . . . . . . . . 408 461 178 . . Impact . | . . . . . . . . . . . . . . . . Slashing 351 | . . . . 351 . . . . . . . . . . . Piercing . | . . . . . . . . . . . . . . . . Highest Corruption 15 | . 1 1 1 1 . . . . . . . 2 2 4 15 Average Corruption 2 | . 1 1 1 1 . . . . . . . 1 2 3 6 Corruption Purged . | . . . . . . . . . . . . . . . . Corruption Blocked . | . . . . . . . . . . . . . . . . Effects 85 | . 5 6 3 8 . . . . . . . 2 15 25 21 Message Errors 22 | . 2 2 . 3 . . . . . . . 1 2 6 6 Matter Fused 20 | . . 2 2 1 . . . . . . . . 5 5 5 Heat Flow Errors 9 | . . 1 . . . . . . . . . . 2 5 1 Energy Discharges 12 | . 1 . . 2 . . . . . . . 1 1 5 2 Parts Rejected 3 | . . . . . . . . . . . . . 1 . 2 Data Loss (minor) 6 | . 1 1 . 2 . . . . . . . . . 1 1 Data Loss (major) 5 | . . . . . . . . . . . . . 3 2 . Misfires 2 | . . . 1 . . . . . . . . . . . 1 Alerts 3 | . 1 . . . . . . . . . . . 1 1 . Misdirections 2 | . . . . . . . . . . . . . . . 2 Weapon Failures 1 | . . . . . . . . . . . . . . . 1 Overload Shots . | . . . . . . . . . . . . . . . . Overflow Damage 248 | . . . . 35 143 . . . . . 63 7 . . . Projectiles 95 | . . . . . 25 . . . . . 63 7 . . . Explosions 145 | . . . . 27 118 . . . . . . . . . . Melee 8 | . . . . 8 . . . . . . . . . . . Knockbacks 32 | . . . . . 10 . . . . . 11 1 2 . 8 Impact . | . . . . . . . . . . . . . . . . Kinetic 29 | . . . . . 7 . . . . . 11 1 2 . 8 Secondary 3 | . . . . . 3 . . . . . . . . . . Self-Inflicted Damage 337 | . . . . 53 84 . . . . . . 125 75 . . Shots 15 | . . . . 2 2 . . . . . . 4 7 . . Rammed . | . . . . . . . . . . . . . . . . Targets Rammed 2 | . . . . 1 1 . . . . . . . . . . Kicked 2 | . . . . 1 1 . . . . . . . . . . Crushed . | . . . . . . . . . . . . . . . . Highest Temperature 530 | . 24 178 10 180 102 . 26 . . 162 530 489 212 229 406 Average Temperature 101 | . 12 49 7 35 31 . 11 . . 60 179 201 76 72 174 Received Heat Transfer 2577 | . 6 . . 339 729 . 175 . 9 273 99 66 129 . 752 Effects 17 | . . . . . . . . . . . 3 7 1 . 6 Shutdowns 6 | . . . . . . . . . . . 1 3 . . 2 Energy Bleed 3 | . . . . . . . . . . . . 2 . . 1 Interference 3 | . . . . . . . . . . . 2 . 1 . . Matter Decay 4 | . . . . . . . . . . . . 2 . . 2 Damage (minor) 1 | . . . . . . . . . . . . . . . 1 Siege Activations . | . . . . . . . . . . . . . . . . Robots Corrupted 1 | . . . . . . . . . . . 1 . . . . Combat Hostiles 1 | . . . . . . . . . . . 1 . . . . Parts Fried . | . . . . . . . . . . . . . . . . Impact Corruptions . | . . . . . . . . . . . . . . . . Robots Melted . | . . . . . . . . . . . . . . . . Combat Hostiles . | . . . . . . . . . . . . . . . . Parts Melted 6 | . . . . 1 1 . . . . 1 . . . . 3 Heat Transferred 3112 | . . 111 37 568 681 . 333 . . 518 . 50 . . 814 Parts Sabotaged . | . . . . . . . . . . . . . . . . Parts Stolen 3 | . . . . . . . . . . 3 . . . . . Parts Stripped . | . . . . . . . . . . . . . . . . Power Chain Reactions 2 | . 1 . . . . . . . . . . 1 . . . Missiles Intercepted . | . . . . . . . . . . . . . . . . Alert | -11 -10 -10 -9 -9 -8 -7 -7 -6 -6 -6 -5 -4 -4 -4 -3 ------- Run | Jun Mat Min Mat Sto Mat Fac DSF Fac Low Low Fac Fac Upp Upp Res Peak Influence 516 | . 139 72 57 284 516 89 142 55 . . 162 301 . . 105 Initial 86 | . . 4 19 17 54 86 47 55 . . . 33 . . . Average 79 | . 59 49 52 84 230 86 71 55 . . 66 78 . . 34 Maximum Alert Level 2 | . . . . 1 2 . . . . . . 1 . . . Low Security (%) 89 | 100 100 100 100 89 30 100 100 100 . . 100 83 . . 100 Level 1 10 | . . . . 10 65 . . . . . . 16 . . . Level 2 . | . . . . . 3 . . . . . . . . . . Level 3 . | . . . . . . . . . . . . . . . . Level 4 . | . . . . . . . . . . . . . . . . Level 5 . | . . . . . . . . . . . . . . . . High Security . | . . . . . . . . . . . . . . . . Max Security . | . . . . . . . . . . . . . . . . Squads Dispatched 13 | . . . . 3 1 . 1 1 . . 2 3 . . 2 Investigation 3 | . . . . 1 . . . . . . 1 1 . . . Extermination 4 | . . . . . . . . . . . 1 1 . . 2 Reinforcement 6 | . . . . 2 1 . 1 1 . . . 1 . . . Assault . | . . . . . . . . . . . . . . . . Garrison . | . . . . . . . . . . . . . . . . Intercept . | . . . . . . . . . . . . . . . . Searches Triggered . | . . . . . . . . . . . . . . . . Construction Impeded 1 | . . . . . . . . . . . . 1 . . . Haulers Reinforced . | . . . . . . . . . . . . . . . . Active Scanning Responses . | . . . . . . . . . . . . . . . . Cargo Convoy Interrupts . | . . . . . . . . . . . . . . . . Stealth | -11 -10 -10 -9 -9 -8 -7 -7 -6 -6 -6 -5 -4 -4 -4 -3 --------- Run | Jun Mat Min Mat Sto Mat Fac DSF Fac Low Low Fac Fac Upp Upp Res Distress Signals 9 | . 1 . 1 4 2 . . . . . . . . . 1 Communications Jammed 16 | . . . . . . . . . . . . 14 . . 2 Distress Signals 15 | . . . . . . . . . . . . 14 . . 1 Times Spotted 178 | . 8 4 2 25 24 . 10 3 2 17 16 25 16 . 26 Peak Tracking Total 14 | . 4 2 1 5 5 . 3 2 7 4 2 10 8 . 14 Tactical Retreats 25 | . . . . 6 . . 2 . . 8 1 2 4 . 2 Traps | -11 -10 -10 -9 -9 -8 -7 -7 -6 -6 -6 -5 -4 -4 -4 -3 ------- Run | Jun Mat Min Mat Sto Mat Fac DSF Fac Low Low Fac Fac Upp Upp Res Traps Triggered 7 | . 1 . 1 . 2 . 1 1 . . . 1 . . . Indirectly 1 | . . . . . . . . . . . . 1 . . . Trap Hack Attempts . | . . . . . . . . . . . . . . . . Triggered . | . . . . . . . . . . . . . . . . Disarmed . | . . . . . . . . . . . . . . . . Reprogrammed . | . . . . . . . . . . . . . . . . Reused . | . . . . . . . . . . . . . . . . Traps Extracted . | . . . . . . . . . . . . . . . . Installed . | . . . . . . . . . . . . . . . . Triggered 2 | . . . . . . . . . . 1 . . 1 . . Machines | -11 -10 -10 -9 -9 -8 -7 -7 -6 -6 -6 -5 -4 -4 -4 -3 ---------- Run | Jun Mat Min Mat Sto Mat Fac DSF Fac Low Low Fac Fac Upp Upp Res Machines Disabled 8 | . 2 . . 1 1 . . . . . 1 3 . . . Max in Single Turn 1 | . 1 . . 1 1 . . . . . 1 1 . . . Machines Repaired . | . . . . . . . . . . . . . . . . Machines Sabotaged . | . . . . . . . . . . . . . . . . Overloaded Fab Kills . | . . . . . . . . . . . . . . . . Hacking | -11 -10 -10 -9 -9 -8 -7 -7 -6 -6 -6 -5 -4 -4 -4 -3 --------- Run | Jun Mat Min Mat Sto Mat Fac DSF Fac Low Low Fac Fac Upp Upp Res Machines Accessed 31 | . 3 . 1 6 2 1 . 1 . . 7 6 . 1 3 Terminals 22 | . 2 . . 6 2 1 . . . . 3 5 . . 3 Fabricators 2 | . . . . . . . . . . . 2 . . . . Repair Stations 2 | . 1 . . . . . . . . . . 1 . . . Recycling Units 3 | . . . 1 . . . . 1 . . 1 . . . . Scanalyzers 1 | . . . . . . . . . . . 1 . . . . Garrison Access . | . . . . . . . . . . . . . . . . Total Hacks 72 | . 7 . 3 18 5 1 . 1 . . 18 14 . 1 4 Successful 49 | . 5 . 3 9 5 1 . 1 . . 14 9 . 1 1 Failed 23 | . 2 . . 9 . . . . . . 4 5 . . 3 Catastrophic 4 | . . . . 1 . . . . . . . 1 . . 2 Database Lockouts . | . . . . . . . . . . . . . . . . Manual . | . . . . . . . . . . . . . . . . Terminals 51 | . 5 . . 18 5 1 . . . . 6 12 . . 4 Fabricators 6 | . . . . . . . . . . . 6 . . . . Repair Stations 4 | . 2 . . . . . . . . . . 2 . . . Recycling Units 7 | . . . 3 . . . . 1 . . 3 . . . . Scanalyzers 3 | . . . . . . . . . . . 3 . . . . Garrison Access . | . . . . . . . . . . . . . . . . Terminal Hacks 31 | . 3 . . 9 5 1 . . . . 4 7 . 1 1 Record 1 | . . . . . . . . . . . . 1 . . . Part Schematic 1 | . . . . . . . . . . . . 1 . . . Open Door 3 | . . . . 2 . . . . . . . . . 1 . Open DSF 2 | . . . . . . 1 . . . . 1 . . . . Branch Access Points 3 | . . . . . 1 . . . . . 1 1 . . . Emergency Access Points 1 | . . . . . 1 . . . . . . . . . . Repair Station Index 1 | . . . . . . . . . . . . 1 . . . Alert Level 2 | . . . . 1 . . . . . . 1 . . . . Unreport Threat 2 | . . . . 1 . . . . . . . 1 . . . Locate Traps 1 | . . . . . . . . . . . 1 . . . . Dispatch Records 4 | . 1 . . 1 1 . . . . . . 1 . . . Patrol Status 1 | . . . . 1 . . . . . . . . . . . Transport Status 1 | . . . . . 1 . . . . . . . . . . Reinforcement Status 1 | . . . . 1 . . . . . . . . . . . Recall Investigation 1 | . . . . 1 . . . . . . . . . . . Recall Assault 1 | . 1 . . . . . . . . . . . . . . Hauler Manifests 3 | . 1 . . 1 1 . . . . . . . . . . Registered Prototypes 1 | . . . . . . . . . . . . . . . 1 Zone Layout 1 | . . . . . . . . . . . . 1 . . . Fabricator Hacks 5 | . . . . . . . . . . . 5 . . . . Network Status 1 | . . . . . . . . . . . 1 . . . . Load Schematic 2 | . . . . . . . . . . . 2 . . . . Build 2 | . . . . . . . . . . . 2 . . . . Repair Station Hacks 4 | . 2 . . . . . . . . . . 2 . . . Scan Component 2 | . 1 . . . . . . . . . . 1 . . . Repair 2 | . 1 . . . . . . . . . . 1 . . . Recycling Unit Hacks 6 | . . . 3 . . . . 1 . . 2 . . . . Recycle Component 1 | . . . 1 . . . . . . . . . . . . Process 1 | . . . 1 . . . . . . . . . . . . Report Inventory 1 | . . . . . . . . 1 . . . . . . . Retrieve Components 3 | . . . 1 . . . . . . . 2 . . . . Scanalyzer 3 | . . . . . . . . . . . 3 . . . . Insert Component 1 | . . . . . . . . . . . 1 . . . . Analyze 2 | . . . . . . . . . . . 2 . . . . Garrison Access Hacks . | . . . . . . . . . . . . . . . . Unauthorized Hacks . | . . . . . . . . . . . . . . . . Terminals . | . . . . . . . . . . . . . . . . Fabricators . | . . . . . . . . . . . . . . . . Repair Stations . | . . . . . . . . . . . . . . . . Recycling Units . | . . . . . . . . . . . . . . . . Scanalyzers . | . . . . . . . . . . . . . . . . Garrison Access . | . . . . . . . . . . . . . . . . Data Cores Recovered . | . . . . . . . . . . . . . . . . Used . | . . . . . . . . . . . . . . . . Hacking Detections 21 | . 3 . 1 3 2 1 . . . . 4 4 . . 3 Full Trace Events 4 | . . . 1 1 . . . . . . 1 1 . . . Feedback Events . | . . . . . . . . . . . . . . . . Feedback Blocked . | . . . . . . . . . . . . . . . . Robot Schematics Acquired . | . . . . . . . . . . . . . . . . Robots Built . | . . . . . . . . . . . . . . . . Authchips . | . . . . . . . . . . . . . . . . Time . | . . . . . . . . . . . . . . . . Total Robot Build Rating . | . . . . . . . . . . . . . . . . Part Schematics Acquired 2 | . . . . . . . . . . . 1 1 . . . Parts Built 4 | . . . . . . . . . . . 4 . . . . Authchips . | . . . . . . . . . . . . . . . . Time 168 | . . . . . . . . . . . 168 . . . . Total Part Build Rating 16 | . . . . . . . . . . . 16 . . . . Parts Repaired 1 | . 1 . . . . . . . . . . . . . . Time 79 | . 26 . . . . . . . . . . 53 . . . Parts Recycled 1 | . . . 1 . . . . . . . . . . . . Recycled Matter 74 | . . . 74 . . . . . . . . . . . . Retrieved Matter . | . . . . . . . . . . . . . . . . Retrieved Components 3 | . . . . . . . . . . . 3 . . . . Parts Scanalyzed 1 | . . . . . . . . . . . 1 . . . . Part Schematics Acquired 1 | . . . . . . . . . . . 1 . . . . Parts Damaged . | . . . . . . . . . . . . . . . . Bothacking | -11 -10 -10 -9 -9 -8 -7 -7 -6 -6 -6 -5 -4 -4 -4 -3 ------------ Run | Jun Mat Min Mat Sto Mat Fac DSF Fac Low Low Fac Fac Upp Upp Res Used RIF Installer . | . . . . . . . . . . . . . . . . Robots Hacked . | . . . . . . . . . . . . . . . . Non-combat . | . . . . . . . . . . . . . . . . Combat . | . . . . . . . . . . . . . . . . Robot Hacks Applied . | . . . . . . . . . . . . . . . . Relay Couplers Released . | . . . . . . . . . . . . . . . . Fabnet Peak Effective % . | . . . . . . . . . . . . . . . . Robots Rewired . | . . . . . . . . . . . . . . . . Allies Hacked . | . . . . . . . . . . . . . . . . Hacks Repelled . | . . . . . . . . . . . . . . . . Allies | -11 -10 -10 -9 -9 -8 -7 -7 -6 -6 -6 -5 -4 -4 -4 -3 -------- Run | Jun Mat Min Mat Sto Mat Fac DSF Fac Low Low Fac Fac Upp Upp Res Total Allies 4 | . . 4 . . . . . . . . . . . . . Largest Group 4 | . . 4 4 3 . . . . . . . . . . . Highest-Rated Group 71 | . . 71 71 40 . . . . . . . . . . . Highest-Rated Ally 31 | . . 31 31 16 . . . . . . . . . . . Total Orders . | . . . . . . . . . . . . . . . . Ally Attacks 38 | . . . 10 28 . . . . . . . . . . . Total Damage 407 | . . . 88 319 . . . . . . . . . . . Kills 9 | . . . 2 7 . . . . . . . . . . . Allies Corrupted . | . . . . . . . . . . . . . . . . Allies Melted . | . . . . . . . . . . . . . . . . Intel | -11 -10 -10 -9 -9 -8 -7 -7 -6 -6 -6 -5 -4 -4 -4 -3 ------- Run | Jun Mat Min Mat Sto Mat Fac DSF Fac Low Low Fac Fac Upp Upp Res Robot Analysis Total . | . . . . . . . . . . . . . . . . Derelict Logs Recovered 7 | . . 1 . . . . . . 2 1 . . 1 2 . Drone Launches 14 | . . . . 14 . . . . . . . . . . . Drone Recoveries 2 | . . . . 2 . . . . . . . . . . . Exploration | -11 -10 -10 -9 -9 -8 -7 -7 -6 -6 -6 -5 -4 -4 -4 -3 ------------- Run | Jun Mat Min Mat Sto Mat Fac DSF Fac Low Low Fac Fac Upp Upp Res Turns Passed 9497 | 97 590 735 352 1013 677 80 272 355 507 533 755 664 865 1231 771 Spaces Moved 5921 | 72 269 335 198 505 258 40 103 237 426 385 397 469 708 1033 486 Core 27 | 23 . . . . . . . . . . . . . . 4 Treads . | . . . . . . . . . . . . . . . . Legs 1750 | 49 269 335 198 505 258 40 90 . . . . . . . 6 Wheels 4144 | . . . . . . . 13 237 426 385 397 469 708 1033 476 Hover . | . . . . . . . . . . . . . . . . Flight . | . . . . . . . . . . . . . . . . Fastest Speed 50 | 50 120 190 130 130 130 200 115 130 100 100 100 100 100 100 115 Average Speed 131 | 110 187 190 165 157 201 200 191 130 114 106 109 114 100 114 122 Slowest Speed 1000 | 120 190 190 330 200 270 200 200 130 115 130 115 115 100 115 1000 Overloaded Moves . | . . . . . . . . . . . . . . . . Propulsion Burnouts . | . . . . . . . . . . . . . . . . Robots Hopped . | . . . . . . . . . . . . . . . . Cave-ins Triggered . | . . . . . . . . . . . . . . . . Exploration Rate (%) 38 | 4 33 68 16 72 28 2 62 8 60 49 9 17 69 98 19 Regions Visited 15 Branch Regions 6 Pre-discovered Areas . | . . . . . . . . . . . . . . . . Known Exits Taken 14 | 1 1 1 1 1 1 1 . 1 1 1 1 1 1 1 . Unknown Exits Taken . | . . . . . . . . . . . . . . . . Scrap Searched 9 | . . . . . . . . . 1 2 . . 3 3 . Spaces Dug 11 | . . 3 . 6 2 . . . . . . . . . . Terrain Destroyed 145 | . 3 3 . 28 62 . . . . . 5 14 7 6 17 Melee . | . . . . . . . . . . . . . . . . Projectile 41 | . . 3 . 6 9 . . . . . 5 4 7 6 1 AOE 103 | . 3 . . 22 53 . . . . . . 9 . . 16 Terrain Rammed 1 | . . . . . . . . . . . . 1 . . . Walls Destroyed 1 | . . . . . . . . . . . . 1 . . . Machines Disabled . | . . . . . . . . . . . . . . . . Actions | -11 -10 -10 -9 -9 -8 -7 -7 -6 -6 -6 -5 -4 -4 -4 -3 --------- Run | Jun Mat Min Mat Sto Mat Fac DSF Fac Low Low Fac Fac Upp Upp Res Total 7276 | 89 345 396 225 663 358 41 156 285 442 486 682 582 834 1068 624 Wait 814 | . 63 38 4 89 35 . 10 38 5 77 225 57 91 15 67 Move 5906 | 71 268 334 197 504 257 39 102 236 425 384 396 468 707 1032 486 Hop . | . . . . . . . . . . . . . . . . Pick Up 123 | 12 5 3 7 7 11 1 13 6 . 4 15 10 9 6 14 Fast Attach 25 | . . . . 8 3 . 3 . 5 1 1 1 1 . 2 Attach 71 | 6 3 . 3 3 9 1 3 2 . 5 6 11 4 . 15 Detach 12 | . . . 1 1 2 . . . . . 3 4 1 . . Swap 55 | . 1 2 5 3 5 . 6 . 2 1 7 5 5 6 7 Drop 91 | . . 1 8 15 8 . 9 3 5 1 10 10 3 5 13 Fire 154 | . 5 18 . 21 27 . 10 . . 11 18 8 13 4 19 Melee 14 | . . . . 11 . . . . . 2 1 . . . . Ram 2 | . . . . . . . . . . . . 1 . . 1 Kick 2 | . . . . 1 1 . . . . . . . . . . Crush . | . . . . . . . . . . . . . . . . Escape Stasis 7 | . . . . . . . . . . . . 7 . . . Rewire . | . . . . . . . . . . . . . . . . Trap . | . . . . . . . . . . . . . . . . Miscellaneous . | . . . . . . . . . . . . . . . . Route ------- -11/Junkyard -10/Materials -10/Mines -9/Materials (discovered 2 exits: Min / *Sto) -9/Storage -8/Materials -7/Factory -7/DSF -6/Factory -6/Lower Caves -6/Lower Caves -5/Factory (discovered 5 exits: *Fac / Upp x2 / Ext x2) -4/Factory (discovered 3 exits: *Upp x2 / Arm) -4/Upper Caves -4/Upper Caves (discovered 2 exits: *Res / *War) -3/Research History --------- Turn | Location | Event 12 | -11/Junkyard | Identified exit to Materials 12 | -11/Junkyard | Discovered exit to Materials (range 16) 98 | -11/Junkyard | Entered Materials 98 | -10/Materials | Evolved 1 slot: Utility x1 310 | -10/Materials | Build established: Hacker-Mutant 521 | -10/Materials | Identified exit to Mines 521 | -10/Materials | Discovered exit to Mines (range 5) 585 | -10/Materials | Repaired Lgt. Armor Plating 688 | -10/Materials | Entered Mines 713 | -10/Mines | Met a Derelict bent on vengeance 1208 | -10/Mines | Received a Mining Laser from a helpful Derelict 1270 | -10/Mines | Identified exit to Materials 1270 | -10/Mines | Discovered exit to Materials (range 15) 1284 | -10/Mines | Learned 2 Materials zone layouts 1301 | -10/Mines | Assisted by bots powering up and referring to "LRC-V3" 1423 | -10/Mines | Entered Materials 1423 | -9/Materials | Accompanied by 4 allies 1423 | -9/Materials | Evolved 2 slots: Power x1, Utility x1 1424 | -9/Materials | Identified exit to Mines 1492 | -9/Materials | Identified exit to Storage 1492 | -9/Materials | Discovered exit to Storage (range 15) 1775 | -9/Materials | Entered Storage 1775 | -9/Storage | Accompanied by 3 allies 2605 | -9/Storage | Found Prototype Launcher 2606 | -9/Storage | Identified Gui. Missile Launcher 2779 | -9/Storage | Identified exit to Materials 2779 | -9/Storage | Discovered exit to Materials (range 7) 2788 | -9/Storage | Entered Materials 2788 | -8/Materials | Evolved 2 slots: Utility x1, Weapon x1 3127 | -8/Materials | Build established: Hacker-Tank 3277 | -8/Materials | Identified exit to Factory 3277 | -8/Materials | Discovered exit to Factory (range 16) 3465 | -8/Materials | Entered Factory 3465 | -7/Factory | Evolved 2 slots: Utility x2 3539 | -7/Factory | Identified exit to DSF 3545 | -7/Factory | Entered DSF 3641 | -7/DSF | Additional patrols routed to DSF 3777 | -7/DSF | Identified exit to Factory 3777 | -7/DSF | Discovered exit to Factory (range 14) 3817 | -7/DSF | Entered Factory 3817 | -6/Factory | Evolved 2 slots: Propulsion x2 3983 | -6/Factory | Identified exit to Lower Caves 3983 | -6/Factory | Discovered exit to Lower Caves (range 9) 4172 | -6/Factory | Entered Lower Caves 4330 | -6/Lower Caves | Learned Factory terminal intel 4506 | -6/Lower Caves | Learned Factory emergency access door positions 4647 | -6/Lower Caves | Identified exit to Lower Caves 4647 | -6/Lower Caves | Discovered exit to Lower Caves (range 12) 4679 | -6/Lower Caves | Entered another Lower Caves area 4771 | -6/Lower Caves | Attracted the attention of an 0b10 checkpoint 5041 | -6/Lower Caves | Learned Factory garrison access intel 5091 | -6/Lower Caves | Identified exit to Factory 5091 | -6/Lower Caves | Discovered exit to Factory (range 11) 5212 | -6/Lower Caves | Entered Factory 5212 | -5/Factory | Evolved 2 slots: Propulsion x2 5214 | -5/Factory | Loaded intel: 28 terminal locations 5215 | -5/Factory | Loaded intel: 3 garrison access locations 5307 | -5/Factory | Build established: Hacker-Mutant 5530 | -5/Factory | Fabricated Arm. Huge Wheel (x2) 5752 | -5/Factory | Fabricated Arm. Huge Wheel (x2) 5954 | -5/Factory | Identified exit to Upper Caves 5954 | -5/Factory | Identified exit to Extension 5960 | -5/Factory | Identified exit to Factory 5960 | -5/Factory | Discovered exit to Factory (range 6) 5967 | -5/Factory | Entered another Factory area 5967 | -4/Factory | Evolved 2 slots: Utility x2 6526 | -4/Factory | Build established: Infiltrator-Tank 6543 | -4/Factory | Spotted B-86 Titan 6567 | -4/Factory | Identified exit to Upper Caves 6567 | -4/Factory | Identified exit to Armory 6631 | -4/Factory | Entered Upper Caves 6643 | -4/Upper Caves | Lost 3 parts (1p1n1w) 6769 | -4/Upper Caves | Attracted the attention of an 0b10 checkpoint 7048 | -4/Upper Caves | Identified exit to Upper Caves 7482 | -4/Upper Caves | Attracted the attention of an 0b10 base 7496 | -4/Upper Caves | Entered another Upper Caves area 7497 | -4/Upper Caves | Identified exit to Warlord 7591 | -4/Upper Caves | Identified exit to Research 7591 | -4/Upper Caves | Discovered exit to Research (range 14) 8276 | -4/Upper Caves | Encountered a Warlord checkpoint 8727 | -4/Upper Caves | Entered Research 8727 | -3/Research | Evolved 2 slots: Utility x2 9412 | -3/Research | Spotted B-86 Titan 9425 | -3/Research | System corruption reached 10% 9484 | -3/Research | Core integrity fell below 50% 9492 | -3/Research | Core integrity fell below 20% 9498 | -3/Research | Destroyed by G-73 Enforcer with Phase Gun Last Messages --------------- 09481_ R-10 Processor collects Hvy. Machine Gun. 09482_ Gauss Cannon destroyed. 09483_ HERF Cannon destroyed. 09484_ Penetrated by Slug. 09484_ Slug penetrates G-67 Veteran. 09484_ G-67 Veteran destroyed. 09487_ Slug penetrates G-67 Veteran. 09487_ Triangulator destroyed. 09488_ GR/X0RNLPYV7PKTKFUVGOH5FY#DJWZOJ P%O 09489_ Slug penetrates G-73 Enforcer. 09489_ Penetrated by Slug. 09490_ Slug penetrates Wall. 09490_ G-67 Veteran destroyed. 09492_ Slug penetrates G-73 Enforcer. 09493_ Penetrated by Slug. 09493_ Slug penetrates Wall. 09494_ H-77 Assassin destroyed. 09495_ Penetrated by Slug. 09497_ Knocked back. [Achievement: 10k Club] Map ----- +----------------------------------------------------+ | | | | | | | | | | | | | | | ?????????????????????????????????????????????????? | | ?????????????????????????????????????????????????? | | ?????????????????????????????????????????????????? | | ?????????????????????????????????????????????????? | | ?????????????????????????????????????????????????? | | ?????????????????????????????????????????????????? | | ?????????????????????????????????????????????????? | | ?????????????????????????????????????????????????? | | ?????????????????????????????????????????????????? | | ?????????????????????????????????????????????????? | | ????????????????????????###########+###??????????? | | ????????????????????????# ?????????? | | ????????????????????????# ?????????? | | ???????????############## ?????????? | | ???????????# # k ??????????? | | ???????????# # ]! #????????????? | | ???????????# ; % ]! #????????????? | | ???????????#[ ; ] #????????????? | | ???????????# ! #@ #????????????? | | ???????????# gp = g #????????????? | | ???????????# %#s%gh BB #????????????? | | ???????????# ;=[ """"BB #????????????? | | ???????????# #*%=""""" #????????????? | | ???????????# # ! "" " #????????????? | | ???????????# # %%""" #????????????? | | ???????????# # % % #????????????? | | ???????????############## g #????????????? | | ????????????????????????# % #????????????? | | ????????????????????????# """ #????????????? | | ????????????????????????# "F #????????????? | | ????????????????????????# " #????????????? | | ????????????????######### """% % ###??????????? | | ??????????????? "" #??????????? | | ??????????????? #??????????? | | ??????????????? % = ###??????????? | | ??????????????? %*##???????????? | | ?????????????????#########+#### !!#????????????? | | ?????????????????????????????? ????????????? | | ?????????????????????????????? ???#???????? | | ?????????????????????????????? [ #???????? | | ????????????????????????????? % #???????? | | ?????????????????????????????! %! #???????? | | ????????????????????????????? #???????? | +----------------------------------------------------+ Best States ------------- Heat Dissipation 51 Energy Generation 45 Energy Capacity 565 Matter Stores 300 Matter Capacity 300 Sight Range 16 Robot Scan Range 15 Terrain Scan Density 10 ECM Strength 1 Jamming Range 16 Power Amplification 20 Armor Coverage 450 Resistance: KI 35 Resistance: TH 60 Resistance: EX 35 Resistance: EM 35 Resistance: I 35 Resistance: S 35 Resistance: P 35 Power Shielding 33 Evasion (%) 55 Armor Integrity Analysis 40 Offensive Hacking 20 Item Schematics ----------------- Arm. Huge Wheel | -5/Factory | Scanalyzed Biometal Heavy Treads | -4/Factory | Hacked Robot Schematics ------------------ None Fabricated ------------ Arm. Huge Wheel | x2 | -5/Factory Arm. Huge Wheel | x2 | -5/Factory Alien Tech Used ----------------- None Achievements -------------- 10k Club Backstab Dangerous Findings Knowing Is Half The Battle Let's See Who's Tougher One Hack Too Far Release The Drones! Total Silence Challenges ------------ None Game ------ Seed TerrabombTransmissionTreads Manual? 0 Play Time 02:45:43 Cumulative 16.2 hours Start 2023.03.04 @ 17:10:45 End 2023.03.05 @ 15:24:52 Sessions 5 Manual Loads 0 Difficulty Explorer Special Mode None Game No. 14 Rogue 10 Adventurer 2 Explorer 2 Win Type - Total 0 Types 0/0/0/0/0/0/0/0/0 Lore% 6 Gallery% 19 Achievement% 14 Wizard Run 0 Options --------- ASCII 0 Keyboard 0 Movement Numpad Keybinds 0 Fullscreen 1 Font 24/Smallcaps Map View 76x50 Tactical HUD 1 Map Filters NONE Filters NONE Steam 1 RUN: d4ccb103-584e-438b-b7be-111950ae0acf